fUSD/lending_fUSD_20250105
["ID","MTS","AMOUNT","RATE_DAILY","PERIOD"]
[347680011,1736051434737,-759.36652179,0.00011501,2]
[347680091,1736051437844,-1435.68,0.00010406,2]
[347680092,1736051437854,-500.0,0.0001058,2]
[347680093,1736051437863,-1435.68,0.0001068,2]
[347680094,1736051437873,-167.83414476,0.00010681,2]
[347680095,1736051437902,-269.18834127,0.00010681,2]
[347680096,1736051437913,-62.97751397,0.00010681,2]
[347680097,1736051437923,-500.0,0.00010854,2]
[347680098,1736051437933,-1435.68,0.00010954,2]
[347680099,1736051437942,-500.0,0.00010955,2]
[347680100,1736051437952,-500.0,0.00011128,2]
[347680101,1736051437962,-500.0,0.00011228,2]
[347680102,1736051437972,-1435.68,0.00011228,2]
[347680103,1736051437982,-270.438115,0.00011229,2]
[347680104,1736051437991,-500.0,0.00011402,2]
[347680105,1736051438001,-77.96347821,0.00011501,2]
[347680106,1736051438011,-993.29,0.00011501,2]
[347680107,1736051438021,-164.55581013,0.00011502,2]
[347680108,1736051438037,-335.44418987,0.00011502,2]
[347680109,1736051438046,-500.0,0.00011502,2]
[347680110,1736051438055,-500.0,0.00011502,2]
[347680111,1736051438064,-613.09,0.00011502,2]
[347680112,1736051438074,-500.0,0.00011502,2]
[347680113,1736051438084,-567.27,0.00011502,2]
[347680114,1736051438093,-617.01713517,0.00011502,2]
[347680115,1736051438102,-405.3475805,0.00011502,2]
[347680116,1736051438111,-1213.85,0.00011502,2]
[347680117,1736051438120,-500.0,0.00011502,2]
[347680119,1736051438129,-1206.88,0.00011502,2]
[347680120,1736051438138,-633.3,0.00011502,2]
[347680122,1736051438147,-500.0,0.00011502,2]
[347680124,1736051438156,-500.0,0.00011502,2]
[347680126,1736051438166,-1043.4,0.00011502,2]
[347680127,1736051438175,-500.0,0.00011502,2]
[347680129,1736051438184,-567.3,0.00011502,2]
[347680131,1736051438193,-645.25586502,0.00011502,2]
[347680133,1736051438206,-500.0,0.00011502,2]
[347680134,1736051438214,-500.0,0.00011502,2]
[347680135,1736051438223,-500.0,0.00011502,2]
[347680136,1736051438232,-500.0,0.00011502,2]
[347680137,1736051438242,-607.08,0.00011502,2]
[347680138,1736051438251,-2223.76,0.00011502,2]
[347680139,1736051438261,-500.0,0.00011502,2]
[347680140,1736051438271,-500.0,0.00011503,2]
[347680141,1736051438284,-500.0,0.00011503,2]
[347680142,1736051438294,-1882.01,0.00011503,2]
[347680143,1736051438303,-500.0,0.00011503,2]
[347680144,1736051438312,-500.0,0.00011503,2]
[347680145,1736051438322,-500.0,0.00011503,2]
[347680146,1736051438331,-500.0,0.00011503,2]
[347680147,1736051438340,-500.0,0.00011503,2]
[347680148,1736051438349,-268.59722998,0.00011503,2]
[347680149,1736051438360,-500.0,0.00011503,2]
[347680150,1736051438369,-132.71477123,0.00011503,2]
[347680151,1736051438381,-559.39522877,0.00011503,2]
[347680152,1736051438391,-500.0,0.00011503,2]
[347680153,1736051438401,-500.0,0.00011503,2]
[347680154,1736051438410,-500.0,0.00011503,2]
[347680155,1736051438419,-500.0,0.00011503,2]
[347680156,1736051438429,-2014.0,0.00011587,2]
[347680157,1736051438438,-3893.0,0.00011587,2]
[347680158,1736051438447,-152.152,0.00011587,2]
[347680159,1736051438460,-636.0,0.00011587,2]
[347680160,1736051438470,-1271.185,0.00011587,2]
[347680161,1736051438479,-500.0,0.00011676,2]
[347680162,1736051438488,-500.0,0.00011676,2]
[347680163,1736051438498,-500.0,0.00011676,2]
[347680164,1736051438511,-500.0,0.00011676,2]
[347680165,1736051438521,-500.0,0.00011676,2]
[347680166,1736051438530,-500.0,0.00011676,2]
[347680167,1736051438540,-331.643,0.0001168,2]
[347680168,1736051438549,-741.0,0.000117,3]
[347680169,1736051438559,-730.87,0.00011775,2]
[347680170,1736051438568,-500.0,0.00011775,2]
[347680171,1736051438577,-1537.87,0.00011775,2]
[347680172,1736051438587,-500.0,0.00011775,2]
[347680173,1736051438597,-1535.71,0.00011775,2]
[347680174,1736051438606,-500.0,0.00011775,2]
[347680175,1736051438616,-818.6,0.00011775,2]
[347680176,1736051438626,-837.33,0.00011775,2]
[347680177,1736051438636,-993.29,0.00011775,2]
[347680178,1736051438645,-451.18919561,0.00011776,2]
[347680179,1736051438654,-649.38,0.00011776,2]
[347680180,1736051438664,-500.0,0.00011776,2]
[347680181,1736051438674,-613.09,0.00011776,2]
[347680182,1736051438683,-323.63472551,0.00011776,2]
[347680183,1736051438693,-567.27,0.00011776,2]
[347680184,1736051438704,-1213.85,0.00011776,2]
[347680185,1736051438713,-500.0,0.00011776,2]
[347680186,1736051438724,-1206.88,0.00011776,2]
[347680187,1736051438734,-633.3,0.00011776,2]
[347680188,1736051438744,-500.0,0.00011776,2]
[347680189,1736051438753,-500.0,0.00011776,2]
[347680190,1736051438763,-1043.4,0.00011776,2]
[347680191,1736051438773,-567.3,0.00011776,2]
[347680192,1736051438783,-500.0,0.00011776,2]
[347680193,1736051438792,-527.85547908,0.00011776,2]
[347680194,1736051438802,-500.0,0.00011776,2]
[347680195,1736051438811,-500.0,0.00011776,2]
[347680196,1736051438821,-607.08,0.00011776,2]
[347680197,1736051438830,-2223.76,0.00011776,2]
[347680198,1736051438840,-500.0,0.00011776,2]
[347680199,1736051438850,-500.0,0.00011777,2]
[347680200,1736051438859,-500.0,0.00011777,2]
[347680201,1736051438868,-1882.01,0.00011777,2]
[347680202,1736051438878,-500.0,0.00011777,2]
[347680203,1736051438888,-500.0,0.00011777,2]
[347680204,1736051438898,-500.0,0.00011777,2]
[347680205,1736051438908,-500.0,0.00011777,2]
[347680206,1736051438920,-500.0,0.00011777,2]
[347680207,1736051438929,-500.0,0.00011777,2]
[347680208,1736051438938,-692.11,0.00011777,2]
[347680209,1736051438948,-217.72721489,0.00011777,2]
[347680210,1736051438959,-500.0,0.00011777,2]
[347680211,1736051438968,-500.0,0.00011777,2]
[347680212,1736051438978,-500.0,0.00011777,2]
[347680213,1736051438988,-500.0,0.0001195,2]
[347680214,1736051438998,-500.0,0.0001195,2]
[347680215,1736051439007,-500.0,0.0001195,2]
[347680216,1736051439016,-500.0,0.0001195,2]
[347680217,1736051439025,-500.0,0.0001195,2]
[347680218,1736051439036,-500.0,0.0001195,2]
[347680219,1736051439045,-8339.62795484,0.00011964,2]
[347680220,1736051439058,-451.15504761,0.00011964,2]
[347680221,1736051439069,-1314.08193483,0.00011964,2]
[347680222,1736051439079,-7601.9624083,0.00011964,2]
[347680223,1736051439089,-200.0,0.00011965,2]
[347680224,1736051439099,-10104.86493728,0.00011966,2]
[347680225,1736051439108,-7601.9624083,0.00011966,2]
[347680226,1736051439118,-20754.39018619,0.00011969,2]
[347680227,1736051439127,-86206.46451731,0.00011969,2]
[347680228,1736051439136,-20754.39018619,0.00011969,2]
[347680229,1736051439146,-627.83071872,0.00011969,2]
[347680230,1736051439156,-32878.51519913,0.00011971,2]
[347680231,1736051439168,-18292.05466676,0.00011971,2]
[347680232,1736051439179,-960.0,0.00011971,2]
[347680233,1736051439190,-3574.0,0.00011971,2]
[347680236,1736051439970,-1534.5,0.00010133,2]
[347680237,1736051439979,-500.0,0.00010405,2]
[347680238,1736051439989,-500.0,0.00010406,2]
[347680239,1736051439998,-500.0,0.00010679,2]
[347680240,1736051440007,-1435.68,0.00011502,2]
[347680241,1736051440017,-1435.68,0.00011776,2]
[347680242,1736051440026,-5025.383992,0.00011971,2]
[347680243,1736051440038,-5400.29866735,0.00011971,2]
[347680244,1736051440049,-807.96291725,0.00011971,2]
[347680245,1736051440060,-2457.88880984,0.00011971,2]
[347680246,1736051440072,-436.89500024,0.00011971,2]
[347680383,1736051443223,-1352.14177809,0.00010406,2]
[347680386,1736051465917,-191.05822191,0.00010406,2]
[347680387,1736051465927,-500.0,0.00010406,2]
[347680388,1736051465936,-1534.5,0.00010407,2]
[347680389,1736051465945,-1488.46,0.00010451,2]
[347680390,1736051465955,-500.0,0.0001068,2]
[347680391,1736051465965,-1543.2,0.0001068,2]
[347680392,1736051465975,-500.0,0.0001068,2]
[347680393,1736051465985,-1534.5,0.00010681,2]
[347680394,1736051465994,-500.0,0.00010953,2]
[347680395,1736051466003,-500.0,0.00010954,2]
[347680396,1736051466013,-1543.2,0.00010954,2]
[347680397,1736051466023,-500.0,0.00010954,2]
[347680398,1736051466032,-1534.5,0.00010955,2]
[347680399,1736051466042,-500.0,0.00011227,2]
[347680400,1736051466051,-500.0,0.00011228,2]
[347680401,1736051466061,-1543.2,0.00011228,2]
[347680402,1736051466070,-500.0,0.00011228,2]
[347680403,1736051466080,-1534.5,0.00011229,2]
[347680404,1736051466089,-500.0,0.00011229,2]
[347680405,1736051466097,-500.0,0.00011501,2]
[347680406,1736051466106,-500.0,0.00011502,2]
[347680407,1736051466115,-1543.2,0.00011502,2]
[347680408,1736051466125,-500.0,0.00011502,2]
[347680409,1736051466134,-1534.5,0.00011503,2]
[347680410,1736051466143,-500.0,0.00011503,2]
[347680411,1736051466152,-640.446,0.00011587,2]
[347680412,1736051466161,-150.975,0.00011587,2]
[347680413,1736051466171,-1172.0,0.00011587,2]
[347680414,1736051466180,-500.0,0.00011775,2]
[347680415,1736051466189,-500.0,0.00011776,2]
[347680416,1736051466199,-1543.2,0.00011776,2]
[347680417,1736051466208,-500.0,0.00011776,2]
[347680418,1736051466218,-1534.5,0.00011777,2]
[347680419,1736051466228,-234580.69944197,0.00011971,2]
[347680420,1736051466321,-8088.8692737,0.00011971,2]
[347680421,1736051466339,-500.0,0.00011971,2]
[347680425,1736052632139,-276.9999995,8.219e-05,2]
[347680426,1736052632245,-547.1300005,8.219e-05,2]
[347680427,1736052632255,-250.0,9.362e-05,2]
[347680428,1736052632264,-250.0,9.376e-05,2]
[347680429,1736052632273,-1000.0,9.393e-05,2]
[347680430,1736052632284,-416.63602,9.427e-05,2]
[347680431,1736052632295,-7856.64859954,9.428e-05,2]
[347680432,1736052632319,-2005.47083319,9.428e-05,2]
[347680433,1736052632574,-2539.40212491,9.428e-05,2]
[347680480,1736052638199,-312.71737836,9.428e-05,2]
[347680481,1736052638211,-419.275395,9.428e-05,2]
[347680482,1736052638222,-974.80061012,9.428e-05,2]
[347680483,1736052638246,-2943.84242347,9.428e-05,2]
[347680484,1736052638257,-1161.4798076,9.428e-05,2]
[347680485,1736052638268,-5291.66807754,9.428e-05,2]
[347680486,1736052638299,-394.69475027,9.428e-05,2]
[347680487,1736052638308,-167.19,9.671e-05,2]
[347680488,1736052638317,-674.88,9.822e-05,2]
[347680489,1736052638326,-1510.37,0.00010009,2]
[347680490,1736052638336,-1333.09,0.00010032,2]
[347680491,1736052638346,-1086.94,0.00010032,2]
[347680492,1736052638355,-500.0,0.00010032,2]
[347680493,1736052638364,-562.53,0.00010032,2]
[347680494,1736052638373,-1509.15,0.00010032,2]
[347680495,1736052638383,-1521.93,0.00010032,2]
[347680496,1736052638391,-1529.05,0.00010032,2]
[347680497,1736052638401,-1506.94,0.00010032,2]
[347680498,1736052638410,-1517.14,0.00010032,2]
[347680499,1736052638419,-1501.71,0.00010032,2]
[347680500,1736052638428,-150.99,0.00010032,2]
[347680501,1736052638438,-999.99,0.00010032,2]
[347680502,1736052638447,-9082.48,0.00010032,2]
[347680503,1736052638456,-152.61,0.00010032,2]
[347680504,1736052638465,-1484.55,0.00010059,2]
[347680505,1736052638474,-500.0,0.00010133,2]
[347680506,1736052638483,-500.0,0.00010133,2]
[347680507,1736052638492,-605.6,0.00010133,2]
[347680508,1736052638501,-500.0,0.00010133,2]
[347680509,1736052638510,-500.0,0.00010133,2]
[347680510,1736052638518,-500.0,0.00010133,2]
[347680511,1736052638527,-500.0,0.00010133,2]
[347680513,1736052638536,-500.0,0.00010133,2]
[347680515,1736052638545,-500.0,0.00010133,2]
[347680517,1736052638554,-500.0,0.00010133,2]
[347680519,1736052638564,-602.66,0.00010137,2]
[347680521,1736052638573,-7043.77929764,0.00010192,2]
[347680523,1736052638584,-96206.63974046,0.00010192,2]
[347680525,1736052638594,-1333.09,0.00010306,2]
[347680527,1736052638603,-1086.94,0.00010306,2]
[347680529,1736052638612,-500.0,0.00010306,2]
[347680531,1736052638621,-562.53,0.00010306,2]
[347680533,1736052638630,-1487.05,0.00010335,2]
[347680535,1736052638640,-500.0,0.00010372,2]
[347680537,1736052638649,-500.0,0.00010372,2]
[347680539,1736052638659,-227.38710886,0.00010372,2]
[347680541,1736052638668,-500.0,0.00010372,2]
[347680543,1736052638677,-500.0,0.00010372,2]
[347680545,1736052638686,-354.32638723,0.00010372,2]
[347680547,1736052638695,-500.0,0.00010372,2]
[347680549,1736052638704,-500.0,0.00010372,2]
[347680551,1736052638714,-500.0,0.00010372,2]
[347680553,1736052638723,-500.0,0.00010372,2]
[347680555,1736052638732,-500.0,0.00010372,2]
[347680557,1736052638741,-500.0,0.00010372,2]
[347680559,1736052638750,-500.0,0.00010372,2]
[347680561,1736052638759,-500.0,0.00010372,2]
[347680563,1736052638768,-500.0,0.00010372,2]
[347680565,1736052638778,-500.0,0.00010372,2]
[347680567,1736052638787,-500.0,0.00010372,2]
[347680569,1736052638796,-165.74559351,0.00010373,2]
[347680571,1736052638805,-162.1165412,0.00010373,2]
[347680573,1736052638814,-200.80229839,0.00010373,2]
[347680575,1736052638823,-502.83909707,0.00010373,2]
[347680577,1736052638832,-290.68758632,0.00010373,2]
[347680579,1736052638841,-500.41482791,0.00010373,2]
[347680581,1736052638853,-471.53730182,0.00010373,2]
[347680583,1736052638862,-260.44036207,0.00010373,2]
[347680585,1736052638871,-159791.88163414,0.00010373,2]
[347680587,1736052638883,-11034.73040788,0.00010373,2]
[347680589,1736052638895,-11710.53549523,0.00010373,2]
[347680641,1736052640068,-332.0700039,0.00010373,2]
[347680642,1736052640080,-395.472,0.00010373,2]
[347680643,1736052640092,-19811.69873716,0.00010373,2]
[347680644,1736052640103,-3250.01874056,0.00010373,2]
[347680645,1736052640140,-305.0000025,0.00010372,2]
[347680646,1736052640186,-194.9999975,0.00010372,2]
[347680647,1736052640196,-1332.82602051,0.00010373,2]
[347680648,1736052640207,-11336.83571536,0.00010373,2]
[347680649,1736052640218,-24571.526139,0.00010373,2]
[347680650,1736052640242,-1983.63196406,0.00010373,2]
[347680651,1736052640253,-264.339999,0.00010373,2]
[347680652,1736052640305,-4965.55,0.00010373,2]
[347680653,1736052640318,-649.85186499,0.00010373,2]
[347680654,1736052640364,-36319.71310505,0.00010373,2]
[347680655,1736052640375,-505.3468668,0.00010373,2]
[347680656,1736052640386,-21783.19749076,0.00010373,2]
[347680657,1736052640397,-5688.02026066,0.00010373,2]
[347680658,1736052640408,-1033.50681685,0.00010373,2]
[347680659,1736052640419,-1239.50863962,0.00010373,2]
[347680660,1736052640469,-4764.15905,0.00010373,2]
[347680661,1736052640480,-2905.38,0.00010373,2]
[347680666,1736052643126,-500.0,0.00010372,2]
[347680667,1736052643136,-15583.3999978,0.00010373,2]
[347680668,1736052643148,-913.19064791,0.00010373,2]
[347680669,1736052643182,-846.0,0.00010373,2]
[347680670,1736052643196,-495.58079881,0.00010373,2]
[347680671,1736052643207,-2187.3,0.00010373,2]
[347680672,1736052643218,-1450.31865778,0.00010373,2]
[347680673,1736052643229,-295.452,0.00010373,2]
[347680674,1736052643246,-2613.24932791,0.00010373,2]
[347680675,1736052643257,-1711.87058023,0.00010373,2]
[347680676,1736052643297,-744.79128,0.00010373,2]
[347680677,1736052643308,-1098.44735005,0.00010373,2]
[347680678,1736052643320,-537.35,0.00010373,2]
[347680679,1736052643332,-5786.75031352,0.00010373,2]
[347680681,1736052646083,-587.97,0.00010372,2]
[347680682,1736052646093,-53660.64555625,0.00010373,2]
[347680683,1736052646104,-500.0,0.00010377,2]
[347680684,1736052646114,-528.06,0.00010377,2]
[347680685,1736052646124,-500.0,0.00010377,2]
[347680686,1736052646134,-500.0,0.00010377,2]
[347680687,1736052646143,-500.0,0.00010377,2]
[347680688,1736052646153,-500.0,0.00010377,2]
[347680689,1736052646162,-500.0,0.00010377,2]
[347680690,1736052646172,-500.0,0.00010377,2]
[347680691,1736052646183,-500.0,0.00010377,2]
[347680692,1736052646192,-500.0,0.00010378,2]
[347680693,1736052646202,-500.0,0.00010378,2]
[347680694,1736052646211,-500.0,0.00010378,2]
[347680695,1736052646222,-320.33,0.00010378,2]
[347680696,1736052646232,-500.0,0.00010378,2]
[347680697,1736052646242,-500.0,0.00010378,2]
[347680698,1736052646251,-500.0,0.00010378,2]
[347680699,1736052646261,-500.0,0.00010378,2]
[347680700,1736052646270,-500.0,0.00010378,2]
[347680701,1736052646279,-500.0,0.00010378,2]
[347680702,1736052646288,-500.0,0.00010378,2]
[347680703,1736052646298,-500.0,0.00010378,2]
[347680704,1736052646307,-615.94,0.00010378,2]
[347680705,1736052646316,-500.0,0.00010378,2]
[347680706,1736052646326,-500.0,0.00010378,2]
[347680707,1736052646335,-500.0,0.00010378,2]
[347680708,1736052646344,-500.0,0.00010378,2]
[347680709,1736052646353,-559.18,0.00010378,2]
[347680710,1736052646362,-500.0,0.00010378,2]
[347680711,1736052646372,-500.0,0.00010378,2]
[347680712,1736052646381,-500.0,0.00010378,2]
[347680713,1736052646389,-500.0,0.00010378,2]
[347680714,1736052646398,-558.35,0.00010378,2]
[347680715,1736052646408,-541.76325889,0.00010378,2]
[347680716,1736052646417,-500.0,0.00010378,2]
[347680717,1736052646426,-552.74,0.00010378,2]
[347680718,1736052646435,-544.61,0.00010378,2]
[347680719,1736052646445,-500.0,0.00010378,2]
[347680720,1736052646454,-500.0,0.00010378,2]
[347680721,1736052646464,-500.0,0.00010378,2]
[347680722,1736052646473,-500.0,0.00010378,2]
[347680723,1736052646483,-500.0,0.00010378,2]
[347680724,1736052646492,-500.0,0.00010378,2]
[347680725,1736052646501,-500.0,0.00010378,2]
[347680726,1736052646511,-500.0,0.00010378,2]
[347680727,1736052646520,-500.0,0.00010378,2]
[347680728,1736052646529,-500.0,0.00010378,2]
[347680729,1736052646538,-500.0,0.00010378,2]
[347680730,1736052646547,-500.0,0.00010378,2]
[347680731,1736052646556,-500.0,0.00010378,2]
[347680732,1736052646565,-500.0,0.00010378,2]
[347680733,1736052646575,-500.0,0.00010378,2]
[347680734,1736052646584,-500.0,0.00010378,2]
[347680735,1736052646593,-500.0,0.00010378,2]
[347680736,1736052646603,-510.23,0.00010378,2]
[347680737,1736052646612,-500.0,0.00010378,2]
[347680738,1736052646621,-500.0,0.00010378,2]
[347680739,1736052646630,-500.0,0.00010378,2]
[347680740,1736052646639,-500.0,0.00010378,2]
[347680741,1736052646649,-500.0,0.00010378,2]
[347680742,1736052646658,-500.0,0.00010378,2]
[347680743,1736052646666,-500.0,0.00010378,2]
[347680744,1736052646676,-500.0,0.00010378,2]
[347680745,1736052646686,-500.0,0.00010378,2]
[347680746,1736052646696,-500.0,0.00010378,2]
[347680747,1736052646705,-500.0,0.00010378,2]
[347680748,1736052646714,-500.0,0.00010378,2]
[347680749,1736052646723,-500.0,0.00010378,2]
[347680750,1736052646731,-500.0,0.00010378,2]
[347680751,1736052646741,-500.0,0.00010378,2]
[347680752,1736052646750,-500.0,0.00010378,2]
[347680753,1736052646759,-500.0,0.00010378,2]
[347680754,1736052646769,-500.0,0.00010378,2]
[347680755,1736052646778,-500.0,0.00010378,2]
[347680756,1736052646786,-522.68,0.00010378,2]
[347680757,1736052646796,-500.0,0.00010378,2]
[347680758,1736052646805,-500.0,0.00010378,2]
[347680759,1736052646814,-500.0,0.00010378,2]
[347680760,1736052646823,-500.0,0.00010378,2]
[347680761,1736052646836,-500.0,0.00010378,2]
[347680762,1736052646846,-500.0,0.00010378,2]
[347680763,1736052646857,-500.0,0.00010378,2]
[347680764,1736052646866,-500.0,0.00010378,2]
[347680765,1736052646876,-500.0,0.00010378,2]
[347680766,1736052646886,-599.63,0.00010378,2]
[347680767,1736052646895,-500.0,0.00010378,2]
[347680768,1736052646908,-500.0,0.00010378,2]
[347680769,1736052646917,-567.51,0.00010378,2]
[347680770,1736052646927,-500.0,0.00010378,2]
[347680771,1736052646937,-500.0,0.00010378,2]
[347680772,1736052646947,-500.0,0.00010378,2]
[347680773,1736052646956,-500.0,0.00010378,2]
[347680774,1736052646966,-500.0,0.00010378,2]
[347680775,1736052646975,-500.0,0.00010378,2]
[347680776,1736052646985,-500.0,0.00010378,2]
[347680777,1736052646994,-500.0,0.00010378,2]
[347680778,1736052647003,-500.0,0.00010378,2]
[347680779,1736052647012,-500.0,0.00010378,2]
[347680780,1736052647023,-500.0,0.00010378,2]
[347680781,1736052647032,-500.0,0.00010378,2]
[347680782,1736052647041,-500.0,0.00010378,2]
[347680783,1736052647051,-500.0,0.00010378,2]
[347680784,1736052647060,-500.0,0.00010378,2]
[347680785,1736052647070,-548.16,0.00010378,2]
[347680786,1736052647079,-500.0,0.00010378,2]
[347680787,1736052647089,-500.0,0.00010378,2]
[347680788,1736052647098,-500.0,0.00010378,2]
[347680789,1736052647107,-502.91,0.00010378,2]
[347680790,1736052647116,-507.38,0.00010378,2]
[347680791,1736052647125,-500.0,0.00010378,2]
[347680792,1736052647134,-500.0,0.00010378,2]
[347680793,1736052647143,-500.0,0.00010378,2]
[347680794,1736052647152,-904.68,0.00010378,2]
[347680795,1736052647161,-501.68703647,0.00010378,2]
[347680796,1736052647170,-500.0,0.00010378,2]
[347680797,1736052647179,-504.41,0.00010378,2]
[347680798,1736052647189,-500.0,0.00010378,2]
[347680799,1736052647199,-500.0,0.00010378,2]
[347680800,1736052647208,-500.0,0.00010378,2]
[347680801,1736052647217,-500.0,0.00010378,2]
[347680802,1736052647226,-751.42,0.00010378,2]
[347680803,1736052647236,-500.0,0.00010378,2]
[347680804,1736052647245,-578.34,0.00010378,2]
[347680805,1736052647254,-500.0,0.00010378,2]
[347680806,1736052647267,-500.0,0.00010378,2]
[347680807,1736052647276,-500.0,0.00010378,2]
[347680808,1736052647286,-515.72,0.00010378,2]
[347680809,1736052647295,-500.0,0.00010378,2]
[347680810,1736052647303,-500.0,0.00010378,2]
[347680811,1736052647312,-1282.99,0.00010378,2]
[347680812,1736052647322,-500.0,0.00010378,2]
[347680813,1736052647331,-500.0,0.00010378,2]
[347680814,1736052647340,-500.0,0.00010378,2]
[347680815,1736052647349,-500.0,0.00010378,2]
[347680816,1736052647359,-500.0,0.00010378,2]
[347680817,1736052647368,-500.0,0.00010378,2]
[347680818,1736052647377,-500.0,0.00010378,2]
[347680819,1736052647386,-500.0,0.00010378,2]
[347680820,1736052647395,-3109.55,0.00010378,2]
[347680821,1736052647404,-500.0,0.00010378,2]
[347680822,1736052647415,-500.0,0.00010378,2]
[347680823,1736052647424,-500.0,0.00010378,2]
[347680824,1736052647433,-500.0,0.00010378,2]
[347680825,1736052647443,-500.0,0.00010378,2]
[347680826,1736052647451,-500.0,0.00010378,2]
[347680827,1736052647461,-500.0,0.00010378,2]
[347680828,1736052647470,-500.0,0.00010378,2]
[347680829,1736052647479,-500.0,0.00010378,2]
[347680830,1736052647488,-501.04401368,0.00010378,2]
[347680831,1736052647497,-500.0,0.00010378,2]
[347680832,1736052647507,-500.0,0.00010378,2]
[347680833,1736052647516,-500.0,0.00010378,2]
[347680834,1736052647525,-500.0,0.00010378,2]
[347680835,1736052647534,-500.0,0.00010378,2]
[347680836,1736052647543,-500.0,0.00010378,2]
[347680837,1736052647552,-500.0,0.00010378,2]
[347680838,1736052647561,-500.0,0.00010378,2]
[347680839,1736052647570,-500.0,0.00010378,2]
[347680840,1736052647580,-500.0,0.00010378,2]
[347680841,1736052647589,-500.7360057,0.00010378,2]
[347680842,1736052647598,-638.82,0.00010378,2]
[347680843,1736052647608,-500.0,0.00010378,2]
[347680844,1736052647617,-500.0,0.00010378,2]
[347680845,1736052647627,-500.0,0.00010378,2]
[347680846,1736052647635,-500.0,0.00010378,2]
[347680847,1736052647645,-500.0,0.00010378,2]
[347680848,1736052647654,-500.0,0.00010378,2]
[347680849,1736052647663,-500.0,0.00010378,2]
[347680850,1736052647672,-500.0,0.00010378,2]
[347680851,1736052647682,-607.74,0.00010378,2]
[347680852,1736052647691,-500.0,0.00010378,2]
[347680853,1736052647701,-500.0,0.00010378,2]
[347680854,1736052647710,-500.0,0.00010378,2]
[347680855,1736052647720,-500.0,0.00010378,2]
[347680856,1736052647730,-500.0,0.00010378,2]
[347680857,1736052647740,-500.0,0.00010378,2]
[347680858,1736052647749,-621.14,0.00010378,2]
[347680859,1736052647758,-500.0,0.00010378,2]
[347680860,1736052647767,-500.0,0.00010378,2]
[347680861,1736052647776,-500.0,0.00010378,2]
[347680862,1736052647785,-500.0,0.00010378,2]
[347680863,1736052647795,-500.0,0.00010378,2]
[347680864,1736052647804,-500.0,0.00010378,2]
[347680865,1736052647814,-500.0,0.00010378,2]
[347680866,1736052647824,-500.0,0.00010378,2]
[347680867,1736052647833,-500.0,0.00010378,2]
[347680868,1736052647842,-500.0,0.00010378,2]
[347680869,1736052647852,-500.0,0.00010378,2]
[347680870,1736052647864,-500.0,0.00010378,2]
[347680871,1736052647873,-500.0,0.00010378,2]
[347680872,1736052647882,-500.0,0.00010378,2]
[347680873,1736052647892,-533.77,0.00010378,2]
[347680874,1736052647901,-500.0,0.00010378,2]
[347680875,1736052647910,-500.0,0.00010378,2]
[347680876,1736052647920,-1773.71,0.00010378,2]
[347680877,1736052647930,-1698.16,0.00010378,2]
[347680878,1736052647940,-500.0,0.00010378,2]
[347680879,1736052647950,-500.0,0.00010378,2]
[347680880,1736052647959,-500.0,0.00010378,2]